fUSD/lending_fUSD_20260610
["ID","MTS","AMOUNT","RATE_DAILY","PERIOD"]
[424716359,1781085040000,-501.0,0.00011644,2]
[424716354,1781085040000,-500.0,0.00011616,2]
[424716361,1781085040000,-150.0,0.00011795,2]
[424716384,1781085040000,-1359.16,0.00012132,2]
[424716388,1781085040000,-261.89984755,0.00012392,3]
[424716390,1781085040000,-151.0,0.00012497,2]
[424716391,1781085040000,-15000.0,0.000125,2]
[424716392,1781085040000,-6111.0,0.000125,2]
[424716389,1781085040000,-1488.2399345,0.000124,2]
[424716393,1781085040000,-982.58497346,0.000125,2]
[424716387,1781085040000,-309.25,0.00012329,2]
[424716395,1781085040000,-500.0,0.000125,2]
[424716394,1781085040000,-10000.0,0.000125,2]
[424716397,1781085040000,-500.0,0.000125,2]
[424716399,1781085040000,-500.0,0.000125,2]
[424716409,1781085040000,-500.0,0.000125,2]
[424716398,1781085040000,-500.0,0.000125,2]
[424716401,1781085040000,-500.0,0.000125,2]
[424716406,1781085040000,-500.0,0.000125,2]
[424716408,1781085040000,-500.0,0.000125,2]
[424716404,1781085040000,-500.0,0.000125,2]
[424716411,1781085040000,-500.0,0.000125,2]
[424716358,1781085040000,-500.0,0.00011616,2]
[424716410,1781085040000,-500.0,0.000125,2]
[424716386,1781085040000,-157.56,0.00012329,2]
[424716385,1781085040000,-166.66,0.00012225,2]
[424716396,1781085040000,-500.0,0.000125,2]
[424716383,1781085040000,-161.96,0.00012112,2]
[424716362,1781085040000,-150.0,0.00011795,2]
[424716382,1781085040000,-431.22,0.00012054,2]
[424716364,1781085040000,-151.0,0.0001182,2]
[424716363,1781085040000,-160.0,0.00011795,2]
[424716365,1781085040000,-154.79,0.00011823,2]
[424716366,1781085040000,-166.66,0.00011858,2]
[424716371,1781085040000,-151.0,0.00012,2]
[424716370,1781085040000,-300.0,0.00011999,2]
[424716369,1781085040000,-151.0,0.00011997,2]
[424716368,1781085040000,-151.0,0.00011997,2]
[424716373,1781085040000,-151.0,0.00012,2]
[424716367,1781085040000,-255.82010105,0.00011895,2]
[424716372,1781085040000,-151.0,0.00012,2]
[424716374,1781085040000,-151.0,0.00012,2]
[424716375,1781085040000,-151.0,0.00012,2]
[424716376,1781085040000,-1659.0,0.00012,2]
[424716378,1781085040000,-151.0,0.00012,2]
[424716377,1781085040000,-332.43807807,0.00012,2]
[424716379,1781085040000,-151.0,0.00012,2]
[424716380,1781085040000,-151.0,0.00012,2]
[424716381,1781085040000,-2000.0,0.00012023,2]
[424716452,1781085041000,-500.0,0.000125,2]
[424716453,1781085041000,-500.0,0.000125,2]
[424716448,1781085041000,-500.0,0.000125,2]
[424716450,1781085041000,-500.0,0.000125,2]
[424716447,1781085041000,-500.0,0.000125,2]
[424716444,1781085041000,-500.0,0.000125,2]
[424716445,1781085041000,-500.0,0.000125,2]
[424716439,1781085041000,-500.0,0.000125,2]
[424716443,1781085041000,-500.0,0.000125,2]
[424716454,1781085041000,-500.0,0.000125,2]
[424716446,1781085041000,-500.0,0.000125,2]
[424716451,1781085041000,-500.0,0.000125,2]
[424716462,1781085041000,-500.0,0.000125,2]
[424716449,1781085041000,-500.0,0.000125,2]
[424716467,1781085041000,-500.0,0.000125,2]
[424716456,1781085041000,-500.0,0.000125,2]
[424716458,1781085041000,-500.0,0.000125,2]
[424716457,1781085041000,-500.0,0.000125,2]
[424716459,1781085041000,-500.0,0.000125,2]
[424716461,1781085041000,-500.0,0.000125,2]
[424716460,1781085041000,-500.0,0.000125,2]
[424716466,1781085041000,-500.0,0.000125,2]
[424716465,1781085041000,-500.0,0.000125,2]
[424716464,1781085041000,-500.0,0.000125,2]
[424716437,1781085041000,-500.0,0.000125,2]
[424716455,1781085041000,-500.0,0.000125,2]
[424716438,1781085041000,-500.0,0.000125,2]
[424716414,1781085041000,-500.0,0.000125,2]
[424716442,1781085041000,-500.0,0.000125,2]
[424716463,1781085041000,-500.0,0.000125,2]
[424716412,1781085041000,-500.0,0.000125,2]
[424716413,1781085041000,-500.0,0.000125,2]
[424716416,1781085041000,-500.0,0.000125,2]
[424716417,1781085041000,-500.0,0.000125,2]
[424716418,1781085041000,-500.0,0.000125,2]
[424716415,1781085041000,-500.0,0.000125,2]
[424716419,1781085041000,-500.0,0.000125,2]
[424716420,1781085041000,-500.0,0.000125,2]
[424716422,1781085041000,-500.0,0.000125,2]
[424716421,1781085041000,-500.0,0.000125,2]
[424716423,1781085041000,-500.0,0.000125,2]
[424716440,1781085041000,-500.0,0.000125,2]
[424716425,1781085041000,-500.0,0.000125,2]
[424716426,1781085041000,-500.0,0.000125,2]
[424716429,1781085041000,-500.0,0.000125,2]
[424716427,1781085041000,-500.0,0.000125,2]
[424716431,1781085041000,-500.0,0.000125,2]
[424716428,1781085041000,-500.0,0.000125,2]
[424716430,1781085041000,-500.0,0.000125,2]
[424716432,1781085041000,-500.0,0.000125,2]
[424716433,1781085041000,-500.0,0.000125,2]
[424716434,1781085041000,-500.0,0.000125,2]
[424716435,1781085041000,-500.0,0.000125,2]
[424716436,1781085041000,-500.0,0.000125,2]
[424716441,1781085041000,-500.0,0.000125,2]
[424716424,1781085041000,-500.0,0.000125,2]
[424716469,1781085041000,-500.0,0.000125,2]
[424716516,1781085041000,-151.0,0.0001288,2]
[424716468,1781085041000,-500.0,0.000125,2]
[424716502,1781085041000,-151.0,0.00012877,2]
[424716503,1781085041000,-151.0,0.00012877,2]
[424716501,1781085041000,-500.0,0.00012877,2]
[424716504,1781085041000,-151.0,0.00012877,2]
[424716506,1781085041000,-151.0,0.00012879,2]
[424716505,1781085041000,-151.0,0.00012879,2]
[424716508,1781085041000,-300.0,0.00012879,2]
[424716511,1781085041000,-22236.08,0.0001288,2]
[424716509,1781085041000,-300.0,0.00012879,2]
[424716510,1781085041000,-666.0,0.00012879,2]
[424716513,1781085041000,-151.0,0.0001288,2]
[424716512,1781085041000,-151.0,0.0001288,2]
[424716507,1781085041000,-241.594195,0.00012879,2]
[424716515,1781085041000,-151.0,0.0001288,2]
[424716514,1781085041000,-151.0,0.0001288,2]
[424716517,1781085041000,-151.0,0.0001288,2]
[424716518,1781085041000,-166.66,0.0001296,2]
[424716520,1781085041000,-1542.0,0.00013,2]
[424716522,1781085041000,-2000.0,0.00013226,2]
[424716523,1781085041000,-431.22,0.0001326,2]
[424716521,1781085041000,-1070.18233087,0.0001305,2]
[424716519,1781085041000,-2358.1078388,0.00013,2]
[424716524,1781085041000,-1359.16,0.00013345,2]
[424716525,1781085041000,-300.51459543,0.00013421,2]
[424716470,1781085041000,-500.0,0.000125,2]
[424716498,1781085041000,-163.3,0.00012854,2]
[424716499,1781085041000,-736.0,0.00012869,2]
[424716526,1781085041000,-1500.0,0.00013459,2]
[424716500,1781085041000,-161.96,0.00012869,2]
[424716496,1781085041000,-200.54127267,0.0001274,2]
[424716471,1781085041000,-500.0,0.000125,2]
[424716477,1781085041000,-500.0,0.000125,2]
[424716473,1781085041000,-500.0,0.000125,2]
[424716474,1781085041000,-500.0,0.000125,2]
[424716476,1781085041000,-500.0,0.000125,2]
[424716475,1781085041000,-500.0,0.000125,2]
[424716478,1781085041000,-500.0,0.000125,2]
[424716479,1781085041000,-500.0,0.000125,2]
[424716481,1781085041000,-926.362251,0.000125,2]
[424716480,1781085041000,-380.00408,0.000125,2]
[424716482,1781085041000,-926.362251,0.000125,2]
[424716483,1781085041000,-926.362251,0.000125,2]
[424716472,1781085041000,-500.0,0.000125,2]
[424716485,1781085041000,-160.0,0.000125,2]
[424716490,1781085041000,-160.0,0.00012522,2]
[424716495,1781085041000,-154.79,0.00012724,2]
[424716494,1781085041000,-289.84973986,0.00012644,2]
[424716493,1781085041000,-170.64746589,0.00012644,2]
[424716491,1781085041000,-166.66,0.00012592,2]
[424716497,1781085041000,-8542.71650432,0.00012769,2]
[424716487,1781085041000,-160.0,0.000125,2]
[424716488,1781085041000,-160.0,0.000125,2]
[424716489,1781085041000,-165.25602076,0.000125,2]
[424716484,1781085041000,-926.362251,0.000125,2]
[424716486,1781085041000,-160.0,0.000125,2]
[424716492,1781085041000,-417.83533928,0.00012644,2]
[424716565,1781085042000,-500.0,0.00013781,2]
[424716564,1781085042000,-300.51459543,0.00013743,2]
[424716562,1781085042000,-200.0,0.000137,2]
[424716561,1781085042000,-172.17979501,0.00013699,2]
[424716560,1781085042000,-151.0,0.00013699,2]
[424716555,1781085042000,-2500.0,0.00013699,2]
[424716556,1781085042000,-254.21445797,0.00013699,2]
[424716559,1781085042000,-151.0,0.00013699,2]
[424716567,1781085042000,-300.51459543,0.00013799,2]
[424716557,1781085042000,-151.0,0.00013699,2]
[424716558,1781085042000,-151.0,0.00013699,2]
[424716569,1781085042000,-300.51459543,0.0001385,2]
[424716573,1781085042000,-300.51459543,0.00013942,2]
[424716574,1781085042000,-300.51459543,0.00013984,2]
[424716571,1781085042000,-300.51459543,0.00013897,2]
[424716572,1781085042000,-159.04,0.000139,2]
[424716576,1781085042000,-300.0,0.00013999,2]
[424716575,1781085042000,-151.0,0.00013997,2]
[424716577,1781085042000,-313.04371724,0.00013999,2]
[424716579,1781085042000,-300.0,0.00013999,2]
[424716580,1781085042000,-300.0,0.00013999,2]
[424716582,1781085042000,-666.0,0.00013999,2]
[424716578,1781085042000,-300.0,0.00013999,2]
[424716554,1781085042000,-151.0,0.00013699,2]
[424716570,1781085042000,-500.0,0.00013867,2]
[424716553,1781085042000,-151.0,0.00013699,2]
[424716540,1781085042000,-500.0,0.00013698,2]
[424716581,1781085042000,-300.0,0.00013999,2]
[424716527,1781085042000,-681.4,0.00013509,2]
[424716528,1781085042000,-300.51459543,0.00013529,2]
[424716529,1781085042000,-300.51459543,0.00013612,2]
[424716534,1781085042000,-223.01162119,0.00013698,2]
[424716531,1781085042000,-1503.0788331,0.00013631,2]
[424716533,1781085042000,-151.0,0.00013695,2]
[424716536,1781085042000,-500.0,0.00013698,2]
[424716530,1781085042000,-161.96,0.00013626,2]
[424716532,1781085042000,-300.51459543,0.00013682,2]
[424716535,1781085042000,-500.0,0.00013698,2]
[424716537,1781085042000,-500.0,0.00013698,2]
[424716550,1781085042000,-200.0,0.00013699,2]
[424716538,1781085042000,-500.0,0.00013698,2]
[424716541,1781085042000,-500.0,0.00013698,2]
[424716542,1781085042000,-500.0,0.00013698,2]
[424716543,1781085042000,-500.0,0.00013698,2]
[424716545,1781085042000,-500.0,0.00013698,2]
[424716544,1781085042000,-500.0,0.00013698,2]
[424716547,1781085042000,-500.0,0.00013698,2]
[424716549,1781085042000,-294.89533016,0.00013698,2]
[424716548,1781085042000,-500.0,0.00013698,2]
[424716546,1781085042000,-500.0,0.00013698,2]
[424716551,1781085042000,-151.0,0.00013699,2]
[424716552,1781085042000,-151.0,0.00013699,2]
[424716539,1781085042000,-500.0,0.00013698,2]
[424716584,1781085042000,-300.0,0.00013999,2]
[424716614,1781085042000,-1358.0,0.00014031,2]
[424716587,1781085042000,-250.0,0.00014,2]
[424716613,1781085042000,-3556.0,0.00014031,2]
[424716617,1781085042000,-1228.524,0.00014031,2]
[424716618,1781085042000,-150.0,0.00014031,2]
[424716620,1781085042000,-950.942,0.00014031,2]
[424716619,1781085042000,-6075.0,0.00014031,2]
[424716626,1781085042000,-300.51459543,0.00014169,2]
[424716625,1781085042000,-1252.0,0.00014155,2]
[424716622,1781085042000,-300.51459543,0.00014099,2]
[424716621,1781085042000,-300.51459543,0.00014063,2]
[424716623,1781085042000,-159.0,0.000141,2]
[424716627,1781085042000,-300.51459543,0.00014202,2]
[424716615,1781085042000,-1276.177,0.00014031,2]
[424716628,1781085042000,-300.51459543,0.00014234,2]
[424716630,1781085042000,-300.51459543,0.00014296,2]
[424716629,1781085042000,-300.51459543,0.00014265,2]
[424716631,1781085042000,-300.51459543,0.00014325,2]
[424716632,1781085042000,-300.51459543,0.00014354,2]
[424716633,1781085042000,-300.51459543,0.00014382,2]
[424716635,1781085042000,-2000.0,0.00014428,2]
[424716634,1781085042000,-300.51459543,0.00014409,2]
[424716638,1781085042000,-300.51459543,0.00014462,2]
[424716636,1781085042000,-300.51459543,0.00014436,2]
[424716637,1781085042000,-163.3,0.00014461,2]
[424716639,1781085042000,-431.22,0.00014465,2]
[424716624,1781085042000,-300.51459543,0.00014135,2]
[424716616,1781085042000,-401.0,0.00014031,2]
[424716583,1781085042000,-300.0,0.00013999,2]
[424716612,1781085042000,-165.425,0.00014031,2]
[424716611,1781085042000,-926.362251,0.00014031,2]
[424716586,1781085042000,-1136.0,0.00014,2]
[424716585,1781085042000,-300.0,0.00013999,2]
[424716589,1781085042000,-2000.0,0.00014,2]
[424716588,1781085042000,-2000.0,0.00014,2]
[424716593,1781085042000,-2000.0,0.00014,2]
[424716591,1781085042000,-2664.0,0.00014,2]
[424716592,1781085042000,-2000.0,0.00014,2]
[424716595,1781085042000,-1555.5,0.00014007,2]
[424716594,1781085042000,-2000.0,0.00014,2]
[424716596,1781085042000,-300.51459543,0.00014024,2]
[424716597,1781085042000,-500.0,0.0001403,2]
[424716590,1781085042000,-2000.0,0.00014,2]
[424716598,1781085042000,-300.0,0.0001403,2]
[424716599,1781085042000,-300.0,0.0001403,2]
[424716609,1781085042000,-926.362251,0.00014031,2]
[424716610,1781085042000,-926.362251,0.00014031,2]
[424716607,1781085042000,-151.0,0.00014031,2]
[424716606,1781085042000,-300.0,0.0001403,2]
[424716608,1781085042000,-926.362251,0.00014031,2]
[424716603,1781085042000,-666.0,0.0001403,2]
[424716601,1781085042000,-300.0,0.0001403,2]
[424716605,1781085042000,-300.0,0.0001403,2]
[424716602,1781085042000,-300.0,0.0001403,2]
[424716600,1781085042000,-300.0,0.0001403,2]
[424716604,1781085042000,-300.0,0.0001403,2]
[424716656,1781085043000,-300.51459543,0.00014656,2]
[424716663,1781085043000,-500.0,0.0001497,2]
[424716657,1781085043000,-300.51459543,0.00014679,2]
[424716658,1781085043000,-300.51459543,0.00014701,2]
[424716662,1781085043000,-1348.07301813,0.0001497,2]
[424716661,1781085043000,-444.19003234,0.00014968,2]
[424716664,1781085043000,-500.0,0.0001497,2]
[424716666,1781085043000,-155.87880589,0.00014974,2]
[424716668,1781085043000,-300.0,0.00014985,2]
[424716669,1781085043000,-300.0,0.00014985,2]
[424716671,1781085043000,-300.0,0.00014985,2]
[424716667,1781085043000,-300.0,0.00014985,2]
[424716673,1781085043000,-300.0,0.00014985,2]
[424716659,1781085043000,-300.51459548,0.00014701,2]
[424716665,1781085043000,-500.47668198,0.0001497,2]
[424716660,1781085043000,-668.0,0.000148,2]
[424716643,1781085043000,-158.0,0.000145,2]
[424716653,1781085043000,-300.51459543,0.00014633,2]
[424716640,1781085043000,-151.0,0.00014468,2]
[424716642,1781085043000,-300.51459543,0.00014488,2]
[424716641,1781085043000,-500.0,0.0001447,2]
[424716670,1781085043000,-300.0,0.00014985,2]
[424716644,1781085043000,-300.51459543,0.00014514,2]
[424716645,1781085043000,-300.51459543,0.00014538,2]
[424716655,1781085043000,-1315.869274,0.00014651,2]
[424716651,1781085043000,-300.51459543,0.00014587,2]
[424716648,1781085043000,-300.51459543,0.00014563,2]
[424716647,1781085043000,-1359.16,0.00014559,2]
[424716649,1781085043000,-199.08,0.0001458,2]
[424716650,1781085043000,-202.16,0.0001458,2]
[424716652,1781085043000,-300.51459543,0.0001461,2]
[424716654,1781085043000,-863.09417995,0.00014634,2]
[424716646,1781085043000,-1613.0535,0.00014555,2]
[424716672,1781085043000,-666.0,0.00014985,2]
[424716674,1781085043000,-300.0,0.00014985,2]
[424716676,1781085043000,-151.0,0.00014986,2]
[424716695,1781085043000,-300.0,0.00014999,2]
[424716696,1781085043000,-428.95807706,0.00015,2]
[424716698,1781085043000,-351.86586003,0.00015,2]
[424716699,1781085043000,-757.29,0.00015,2]
[424716702,1781085043000,-191.28,0.00015,2]
[424716700,1781085043000,-476088.04468493,0.00015,2]
[424716693,1781085043000,-702.55853752,0.00014999,2]
[424716697,1781085043000,-200.0,0.00015,2]
[424716704,1781085043000,-2000.0,0.00015,2]
[424716703,1781085043000,-2000.0,0.00015,2]
[424716705,1781085043000,-2000.0,0.00015,2]
[424716706,1781085043000,-2000.0,0.00015,2]
[424716708,1781085043000,-1970.35158008,0.00015,2]
[424716707,1781085043000,-2000.0,0.00015,2]
[424716675,1781085043000,-151.0,0.00014986,2]
[424716689,1781085043000,-300.0,0.00014999,2]
[424716701,1781085043000,-1250.0,0.00015,2]
[424716694,1781085043000,-300.0,0.00014999,2]
[424716678,1781085043000,-151.0,0.00014986,2]
[424716679,1781085043000,-151.0,0.00014986,2]
[424716677,1781085043000,-151.0,0.00014986,2]
[424716680,1781085043000,-226.142666,0.00014986,2]
[424716683,1781085043000,-250.0,0.0001499,2]
[424716692,1781085043000,-300.0,0.00014999,2]
[424716682,1781085043000,-8831.0,0.00014986,2]
[424716681,1781085043000,-4316.0,0.00014986,2]
[424716687,1781085043000,-500.0,0.00014999,2]
[424716686,1781085043000,-500.0,0.00014999,2]
[424716685,1781085043000,-500.0,0.00014999,2]
[424716688,1781085043000,-500.0,0.00014999,2]
[424716690,1781085043000,-300.0,0.00014999,2]
[424716691,1781085043000,-300.0,0.00014999,2]
[424716684,1781085043000,-2000.0,0.0001499,2]
[424716710,1781085044000,-2000.0,0.00015,2]
[424716711,1781085044000,-2000.0,0.00015,2]
[424716709,1781085044000,-29.64841992,0.00015,2]
[424716712,1781085044000,-2000.0,0.00015,2]
[424716716,1781085044000,-2000.0,0.00015,2]
[424716715,1781085044000,-2000.0,0.00015,2]
[424716714,1781085044000,-2000.0,0.00015,2]
[424716718,1781085044000,-512.54,0.00015,2]
[424716717,1781085044000,-503.97154901,0.00015,2]
[424716713,1781085044000,-2000.0,0.00015,2]
[424716740,1781085045000,-2000.0,0.00015,2]
[424716719,1781085045000,-229.05385246,0.00015,2]
[424716730,1781085045000,-1000.0,0.000128,2]
[424716732,1781085045000,-754.43459853,0.00015,2]
[424716731,1781085045000,-424.437,0.00014031,2]
[424716733,1781085045000,-2000.0,0.00015,2]
[424716736,1781085045000,-109.26619827,0.00015,2]
[424716735,1781085045000,-1576.97159853,0.00015,2]
[424716734,1781085045000,-423.02840147,0.00015,2]
[424716738,1781085045000,-397.06508636,0.00015,2]
[424716737,1781085045000,-923.0,0.00015,2]
[424716751,1781085045000,-1670.19678103,0.00015,2]
[424716739,1781085045000,-570.66871537,0.00015,2]
[424716742,1781085045000,-2000.0,0.00015,2]
[424716744,1781085045000,-2000.0,0.00015,2]
[424716743,1781085045000,-2000.0,0.00015,2]
[424716746,1781085045000,-104.96928271,0.00015,2]
[424716745,1781085045000,-2000.0,0.00015,2]
[424716748,1781085045000,-1279.03071729,0.00015,2]
[424716747,1781085045000,-616.0,0.00015,2]
[424716749,1781085045000,-525.37537553,0.00015,2]
[424716750,1781085045000,-231.39462447,0.00015,2]
[424716741,1781085045000,-2000.0,0.00015,2]
[424716767,1781085195000,1000.0,0.0003,120]
[424716768,1781085341000,10000.0,0.00029452,120]
[424716769,1781085385000,4165.21666201,0.00030137,120]
[424716771,1781085456000,500.0,0.00029589,120]
[424716778,1781085788000,150.0,0.0003013,120]
[424716779,1781085949000,910.4,0.00030137,120]
[424716781,1781086003000,-266.93056261,9.04e-05,2]
[424716780,1781086003000,-199.25,8.409e-05,2]
[424716784,1781086098000,300.0,0.00029863,120]
[424716783,1781086098000,300.0,0.00029863,120]
[424716789,1781086099000,194.30950064,0.00029863,120]
[424716788,1781086099000,300.0,0.00029863,120]
[424716787,1781086099000,300.0,0.00029863,120]
[424716786,1781086099000,300.0,0.00029863,120]
[424716785,1781086099000,300.0,0.00029863,120]
[424716790,1781086186000,289.439244,0.000301,120]
[424716791,1781086191000,620.32,0.00030137,120]
[424716792,1781086201000,289.439244,0.000301,120]
[424716794,1781086231000,-15455.41662912,9.04e-05,2]
[424716795,1781086231000,-1122.21349472,9.04e-05,2]
[424716798,1781086231000,-1005.3639732,9.04e-05,2]
[424716796,1781086231000,-268.95559825,9.04e-05,2]
[424716797,1781086231000,-556.02436834,9.04e-05,2]
[424716816,1781086237000,-273.9120435,9.04e-05,2]
[424716815,1781086237000,-4516.74741827,9.04e-05,2]
[424716817,1781086238000,-2212.43482613,9.04e-05,2]
[424716890,1781086239000,-876.12988154,9.04e-05,2]
[424716928,1781086240000,-1670.45764823,0.00011777,2]
[424716929,1781086240000,-1074.23,0.00011802,2]
[424716926,1781086240000,-162.7,0.00011605,2]
[424716925,1781086240000,-166.66,0.00011507,2]
[424716924,1781086240000,-200.0,0.00011442,2]
[424716931,1781086240000,-6075.0,0.00011836,2]
[424716922,1781086240000,-255.0,0.00011289,2]
[424716923,1781086240000,-166.66,0.00011397,2]
[424716921,1781086240000,-166.66,0.00011288,2]
[424716920,1781086240000,-162.7,0.00011245,2]
[424716927,1781086240000,-1000.0,0.00011752,2]
[424716930,1781086240000,-162.49,0.0001182,2]
[424716935,1781086240000,-2000.0,0.00011949,2]
[424716934,1781086240000,-157.20732772,0.00011867,2]
[424716933,1781086240000,-3661.361,0.00011836,2]
[424716936,1781086240000,-162.7,0.00011964,2]
[424716937,1781086240000,-245.19472552,0.00011997,2]
[424716939,1781086240000,-151.0,0.00012,2]
[424716938,1781086240000,-151.0,0.00012,2]
[424716943,1781086240000,-3053.8,0.00012087,2]
[424716940,1781086240000,-151.0,0.00012,2]
[424716942,1781086240000,-250.0,0.00012,2]
[424716941,1781086240000,-151.0,0.00012,2]
[424716945,1781086240000,-2500.0,0.00012198,2]
[424716919,1781086240000,-166.66,0.00011178,2]
[424716932,1781086240000,-1214.0,0.00011836,2]
[424716917,1781086240000,-215.92376884,0.00011164,2]
[424716898,1781086240000,-150.0,0.00010272,2]
[424716916,1781086240000,-2000.0,0.00011105,2]
[424716948,1781086240000,-1352.77094979,0.00012229,2]
[424716891,1781086240000,-1555.10002022,9.04e-05,2]
[424716893,1781086240000,-250.0,9.062e-05,2]
[424716894,1781086240000,-630.13767756,9.084e-05,2]
[424716892,1781086240000,-20832.86418926,9.04e-05,2]
[424716896,1781086240000,-250.0,9.944e-05,2]
[424716899,1781086240000,-8213.42363427,0.00010273,2]
[424716895,1781086240000,-630.13767755,9.788e-05,2]
[424716900,1781086240000,-630.13767755,0.00010391,2]
[424716897,1781086240000,-500.0,9.944e-05,2]
[424716902,1781086240000,-162.49,0.00010506,2]
[424716903,1781086240000,-482.6807,0.00010511,2]
[424716905,1781086240000,-951.76,0.00010557,2]
[424716904,1781086240000,-572.15,0.00010543,2]
[424716901,1781086240000,-1074.23,0.00010491,2]
[424716906,1781086240000,-340.7,0.00010577,2]
[424716907,1781086240000,-2000.0,0.00010622,2]
[424716908,1781086240000,-500.0,0.0001063,2]
[424716910,1781086240000,-162.7,0.00010886,2]
[424716909,1781086240000,-187.84,0.0001082,2]
[424716911,1781086240000,-166.66,0.00010959,2]
[424716913,1781086240000,-150.0,0.0001104,2]
[424716912,1781086240000,-822.2416,0.00011005,2]
[424716914,1781086240000,-166.66,0.00011068,2]
[424716915,1781086240000,-13220.7821,0.00011105,2]
[424716918,1781086240000,-284.95203121,0.00011164,2]
[424716946,1781086240000,-28386.58819182,0.00012218,2]
[424716996,1781086240000,-786.98622168,0.00012297,2]
[424716947,1781086240000,-1488.2399345,0.00012223,2]
[424716978,1781086240000,-786.98622168,0.00012297,2]
[424716981,1781086240000,-786.98622168,0.00012297,2]
[424716980,1781086240000,-786.98622168,0.00012297,2]
[424716982,1781086240000,-786.98622168,0.00012297,2]
[424716985,1781086240000,-786.98622168,0.00012297,2]
[424716984,1781086240000,-786.98622168,0.00012297,2]
[424716983,1781086240000,-786.98622168,0.00012297,2]
[424716987,1781086240000,-786.98622168,0.00012297,2]
[424716988,1781086240000,-786.98622168,0.00012297,2]
[424716986,1781086240000,-786.98622168,0.00012297,2]
[424716990,1781086240000,-786.98622168,0.00012297,2]
[424716989,1781086240000,-786.98622168,0.00012297,2]
[424716992,1781086240000,-786.98622168,0.00012297,2]
[424716994,1781086240000,-786.98622168,0.00012297,2]
[424716997,1781086240000,-786.98622168,0.00012297,2]
[424716993,1781086240000,-786.98622168,0.00012297,2]
[424716995,1781086240000,-786.98622168,0.00012297,2]
[424716998,1781086240000,-786.98622168,0.00012297,2]
[424716999,1781086240000,-786.98622168,0.00012297,2]
[424717000,1781086240000,-786.98622168,0.00012297,2]
[424717004,1781086240000,-786.98622168,0.00012297,2]
[424717001,1781086240000,-786.98622168,0.00012297,2]
[424717003,1781086240000,-786.98622168,0.00012297,2]
[424716944,1781086240000,-150.99,0.00012087,2]
[424717002,1781086240000,-786.98622168,0.00012297,2]
[424716977,1781086240000,-786.98622168,0.00012297,2]
[424716976,1781086240000,-786.98622168,0.00012297,2]
[424716991,1781086240000,-786.98622168,0.00012297,2]
[424716974,1781086240000,-786.98622168,0.00012297,2]
[424716949,1781086240000,-8542.71650432,0.00012229,2]
[424716951,1781086240000,-151.0,0.00012295,2]
[424716979,1781086240000,-786.98622168,0.00012297,2]
[424716950,1781086240000,-151.0,0.00012294,2]
[424716952,1781086240000,-151.0,0.00012295,2]
[424716953,1781086240000,-151.0,0.00012295,2]
[424716955,1781086240000,-500.0,0.00012297,2]
[424716954,1781086240000,-246.79614873,0.00012297,2]
[424716957,1781086240000,-500.0,0.00012297,2]
[424716960,1781086240000,-350.3283477,0.00012297,2]